bitfinex/quotes_SOLUSD_20240614
["timestamp","ask_amount","ask_price","bid_price","bid_amount"]
[1718388677937,15.8267,140.27,140.23,7.9152]
[1718388678147,10.5506,140.28,140.23,7.9152]
[1718388678148,23.739,140.28,140.24,2.6383]
[1718388678313,2.6376,140.28,140.25,2.638]
[1718388678515,2.6374,140.29,140.26,2.6379]
[1718388678741,7.36754077,140.3,140.23,16.3523]
[1718388678937,102.2273,140.37,140.23,16.3523]
[1718388679126,18.4584,140.32,140.24,0.17]
[1718388679338,15.8211,140.32,140.28,15.8251]
[1718388679543,2.6371,140.31,140.27,13.1885]
[1718388679729,15.8221,140.31,140.27,23.7394]
[1718388679933,2.6373,140.3,140.26,13.1895]
[1718388680154,2.6373,140.3,140.27,2.6377]
[1718388680325,23.7349,140.3,140.26,2.6378]
[1718388680525,2.637,140.31,140.28,2.6374]
[1718388680733,23.7319,140.32,140.28,7.9125]
[1718388681065,2.6372,140.3,140.27,7.913]
[1718388681223,7.35913337,140.34,140.25,6.3907]
[1718388681224,2.6378,140.27,140.25,6.3907]
[1718388681424,15.26873337,140.34,140.26,0.17]
[1718388681733,2.6363,140.35,140.31,18.458]
[1718388682053,23.7197,140.39,140.35,2.6361]
[1718388682342,20.26667273,140.4,140.36,2.6359]
[1718388682566,5.0,140.4,140.31,21.29]
[1718388682783,5.0,140.4,140.39,26.355]
[1718388683060,7.35457295,140.44,140.35,0.17]
[1718388683061,5.2693,140.44,140.4,5.2705]
[1718388683231,2.6343,140.46,140.42,5.2697]
[1718388683429,2.6343,140.46,140.41,15.298]
[1718388683430,5.2695,140.43,140.41,15.298]
[1718388683643,2.6348,140.43,140.41,15.298]
[1718388683848,26.3444,140.45,140.41,23.2033]
[1718388684043,0.33333333,140.42,140.41,41.6492]
[1718388684244,5.2678,140.48,140.41,15.298]
[1718388684436,5.2685,140.46,140.43,2.6347]
[1718388684648,18.4358,140.49,140.45,2.6343]
[1718388684836,5.2677,140.48,140.42,6.0267]
[1718388685037,7.9034,140.45,140.42,6.0267]
[1718388685245,7.9042,140.43,140.41,15.298]
[1718388685430,5.2689,140.45,140.41,15.298]
[1718388685633,13.1714,140.46,140.42,2.6349]
[1718388685834,2.6344,140.45,140.41,28.4733]
[1718388686042,23.7089,140.46,140.42,2.6348]
[1718388686354,15.8054,140.46,140.42,7.9045]
[1718388686551,2.6346,140.44,140.41,15.298]
[1718388687049,7.9028,140.46,140.42,13.1745]
[1718388687240,2.6349,140.43,140.41,15.298]
[1718388687441,2.6354,140.4,140.37,6.3434]
[1718388687749,2.6358,140.37,140.33,26.3655]
[1718388687955,5.2718,140.37,140.33,15.8194]
[1718388688265,100.0,140.46,140.35,2.6361]
[1718388688266,200.0,140.46,140.35,2.6361]
[1718388688458,2.6357,140.38,140.35,7.9085]
[1718388688659,2.6357,140.38,140.35,2.6361]
[1718388688857,2.6357,140.38,140.35,7.9086]
[1718388689063,18.4437,140.43,140.32,42.6612]
[1718388689266,7.9037,140.44,140.32,42.6612]
[1718388689470,241.9763,140.48,140.33,0.17]
[1718388689759,2.6355,140.39,140.36,7.908]
[1718388689960,23.7183,140.4,140.36,23.7243]
[1718388690160,23.7183,140.4,140.32,42.6612]
[1718388690161,241.9763,140.48,140.32,21.3712]
[1718388690364,2.6353,140.41,140.32,42.6612]
[1718388690540,5.2707,140.4,140.36,5.2719]
[1718388690867,141.9763,140.48,140.32,21.3712]
[1718388690868,2.6351,140.41,140.38,2.6356]
[1718388691080,18.4425,140.44,140.4,2.6352]
[1718388691236,23.7118,140.44,140.4,7.9058]
[1718388691442,26.3465,140.44,140.4,15.8117]
[1718388691642,2.6349,140.42,140.39,7.9062]
[1718388691865,2.6348,140.43,140.4,7.9058]
[1718388692059,2.6348,140.43,140.4,2.6352]
[1718388692360,2.6351,140.41,140.38,7.9068]
[1718388692570,100.0,140.47,140.32,42.6612]
[1718388692750,100.0,140.45,140.35,2.6362]
[1718388692953,5.2697,140.43,140.36,15.8158]
[1718388693143,2.6358,140.37,140.34,10.5453]
[1718388693346,100.0,140.45,140.33,23.7289]
[1718388693545,100.0,140.45,140.33,5.2732]
[1718388693849,0.17,140.44,140.32,21.3712]
[1718388694059,5.2719,140.37,140.33,15.8193]
[1718388694254,1.63574992,140.43,140.32,21.3712]
[1718388694564,15.8178,140.35,140.32,21.3712]
[1718388694748,1.63574992,140.43,140.32,21.3712]
[1718388694945,7.906,140.4,140.32,21.3712]
[1718388695152,2.6352,140.41,140.38,2.6356]
[1718388695358,2.6352,140.41,140.37,7.9072]
[1718388695359,2.6353,140.4,140.37,7.9072]
[1718388695561,2.6353,140.4,140.37,7.9073]
[1718388695764,8.99723547,140.43,140.32,42.6612]
[1718388695973,7.9067,140.39,140.36,2.636]
[1718388696266,2.6354,140.4,140.37,2.6357]
[1718388696448,2.6354,140.4,140.37,7.9074]
[1718388696645,26.3519,140.41,140.37,15.815]
[1718388696950,7.9056,140.41,140.38,2.6356]
[1718388697153,23.7156,140.42,140.38,7.9068]
[1718388697469,15.8119,140.4,140.36,23.7236]
[1718388697651,18.4449,140.42,140.34,0.17]
[1718388697855,2.635,140.42,140.39,2.6354]
[1718388698055,23.7148,140.42,140.38,18.4493]
[1718388698368,2.6349,140.42,140.39,7.9064]
[1718388698567,6.90554992,140.43,140.38,23.7204]
[1718388698750,2.635,140.42,140.39,7.9064]
[1718388698952,25.34904992,140.43,140.39,7.9063]
[1718388699149,4.27044992,140.43,140.4,7.9057]
[1718388699572,1.63574992,140.43,140.41,2.6351]
[1718388699870,2.6346,140.44,140.41,5.27]
[1718388700082,7.9033,140.45,140.42,2.6348]
[1718388700369,13.1724,140.45,140.41,23.716]
[1718388700576,23.7103,140.45,140.41,26.3509]
[1718388700870,2.6346,140.44,140.41,7.9051]
[1718388701068,23.708,140.46,140.42,7.9046]
[1718388701250,23.7068,140.47,140.43,5.2694]
[1718388701450,23.7068,140.47,140.41,6.4853]
[1718388701451,21.0707,140.48,140.45,2.6343]
[1718388701659,2.6339,140.48,140.45,7.9029]
[1718388701856,7.5588,140.54,140.41,6.4853]
[1718388702066,7.35803998,140.5,140.41,6.4853]
[1718388702249,5.2689,140.45,140.41,11.7554]
[1718388702443,23.7098,140.45,140.41,19.6607]
[1718388702665,7.9033,140.45,140.42,2.6349]
[1718388702861,7.9037,140.44,140.41,9.1202]
[1718388703070,2.6346,140.44,140.41,14.3904]
[1718388703379,26.3408,140.47,140.44,2.6345]
[1718388703572,2.6342,140.46,140.43,26.3467]
[1718388703768,26.3402,140.47,140.43,26.3467]
[1718388703970,26.3402,140.47,140.44,2.6345]
[1718388704278,2.6342,140.46,140.43,26.3467]
[1718388704581,2.6339,140.48,140.45,7.9029]
[1718388704792,7.35866974,140.5,140.43,23.7121]
[1718388704793,5.2681,140.47,140.43,23.7121]
[1718388704958,2.6342,140.46,140.43,7.9038]
[1718388705148,7.9033,140.45,140.42,2.6348]
[1718388705353,2.6343,140.46,140.43,7.9041]
[1718388705557,2.6344,140.45,140.42,7.9045]
[1718388705757,2.6346,140.44,140.41,14.3903]
[1718388705955,26.3443,140.45,140.41,30.2009]
[1718388706171,23.7098,140.45,140.41,30.2009]
[1718388706375,2.6345,140.45,140.42,7.9047]
[1718388706580,2.6341,140.47,140.44,7.9036]
[1718388706778,2.634,140.47,140.44,7.9034]
[1718388707080,26.339,140.48,140.45,2.6343]
[1718388707262,2.6339,140.48,140.45,7.903]
[1718388707465,2.6337,140.49,140.45,18.4406]
[1718388707663,10.5346,140.49,140.46,2.6341]
[1718388707854,23.703,140.49,140.45,23.7091]
[1718388708054,9.99216974,140.5,140.47,15.8036]
[1718388708272,1.63574992,140.53,140.48,2.6337]
[1718388708565,2.6334,140.5,140.47,26.3392]
[1718388708787,23.6995,140.51,140.48,2.6338]
[1718388708788,2.6334,140.51,140.48,2.6338]
[1718388708975,2.6338,140.48,140.45,7.9028]
[1718388709175,1.63574992,140.53,140.41,27.7753]
[1718388709403,2.6333,140.51,140.48,2.6337]
[1718388709680,2.6337,140.49,140.46,2.6341]
[1718388709879,201.63574992,140.53,140.33,22.0339]
[1718388710081,135.8,140.49,140.33,22.0339]
[1718388710258,2.6352,140.41,140.38,2.6356]
[1718388710454,2.635,140.42,140.39,2.6354]
[1718388710867,2.6351,140.41,140.38,2.6355]
[1718388711072,18.445,140.42,140.39,2.6355]
[1718388711274,23.7136,140.43,140.39,7.9063]
[1718388711485,2.6349,140.42,140.39,2.6354]
[1718388711690,15.8097,140.42,140.38,23.72]
[1718388711998,10.5394,140.43,140.38,23.72]
[1718388711999,26.3485,140.43,140.39,13.1774]
[1718388712158,2.6349,140.43,140.4,2.6352]
[1718388712359,7.9045,140.43,140.4,2.6352]
[1718388712567,5.2689,140.45,140.33,43.3239]
[1718388712770,15.8066,140.45,140.41,2.635]
[1718388712973,15.8066,140.45,140.41,15.8104]
[1718388713270,35.8,140.49,140.33,43.3239]
[1718388713485,2.635,140.42,140.39,7.9063]
[1718388713779,2.6348,140.43,140.4,2.6352]
[1718388713982,23.713,140.43,140.39,7.9061]
[1718388714187,2.6348,140.43,140.4,2.6353]
[1718388714689,7.9043,140.43,140.39,26.3543]
[1718388714867,15.8086,140.43,140.39,26.3543]
[1718388715183,7.9048,140.42,140.38,23.7202]
[1718388715396,23.7145,140.42,140.38,7.9066]
[1718388715598,26.3495,140.42,140.38,7.9066]
[1718388715762,2.635,140.42,140.39,7.9064]
[1718388715958,26.3484,140.43,140.39,7.9064]
[1718388716179,7.9059,140.41,140.35,0.17]
[1718388716360,7.9059,140.41,140.37,2.6358]
[1718388716361,2.6353,140.4,140.37,2.6358]
[1718388716561,7.9057,140.41,140.38,2.6356]
[1718388716997,26.3505,140.42,140.38,15.814]
[1718388717161,15.8104,140.42,140.38,26.3568]
[1718388717369,5.2696,140.43,140.39,5.2707]
[1718388717571,2.635,140.42,140.39,2.6354]
[1718388717779,7.9044,140.43,140.39,23.7192]
[1718388717978,2.6349,140.42,140.39,2.6354]
[1718388718280,7.9054,140.41,140.37,26.3576]
[1718388718489,13.1767,140.4,140.36,7.908]
[1718388718692,13.1767,140.4,140.33,43.3239]
[1718388718693,100.0,140.45,140.33,22.0339]
[1718388718865,100.0,140.45,140.34,18.4547]
[1718388718866,18.4492,140.39,140.34,18.4547]
[1718388719189,2.6364,140.34,140.31,2.6369]
[1718388719394,5.2737,140.32,140.28,42.8742]
[1718388719583,15.8201,140.33,140.29,2.6372]
[1718388719765,15.8201,140.33,140.28,40.2366]
[1718388719966,23.7304,140.33,140.29,2.6373]
[1718388720184,23.7268,140.35,140.3,18.4603]
[1718388720383,18.454,140.35,140.31,2.637]
[1718388720601,7.36428718,140.38,140.29,23.7356]
[1718388720602,2.6367,140.33,140.29,23.7356]
[1718388720886,7.9095,140.34,140.3,7.9113]
[1718388721084,23.7282,140.34,140.3,2.637]
[1718388721292,26.3647,140.34,140.3,2.637]
[1718388721513,23.7267,140.35,140.3,23.7345]
[1718388721676,26.3631,140.35,140.31,2.6369]
[1718388721989,13.1796,140.37,140.32,26.3672]
[1718388722291,13.8294,140.42,140.28,21.9444]
[1718388722292,7.3805202,140.36,140.28,21.9444]
[1718388722513,2.6365,140.34,140.3,7.9113]
[1718388722803,7.909,140.35,140.31,2.6369]
[1718388723094,2.6364,140.35,140.31,15.8218]
[1718388723301,15.28007864,140.38,140.34,2.6363]
[1718388723472,21.0894,140.36,140.32,2.6367]
[1718388723673,7.37287864,140.38,140.32,2.6367]
[1718388723674,5.272,140.37,140.32,18.4569]
[1718388723871,7.37287864,140.38,140.31,2.6369]
[1718388724190,26.363,140.35,140.31,2.6369]
[1718388724399,2.6366,140.33,140.29,23.9056]
[1718388724561,2.6366,140.33,140.29,5.2746]
[1718388724762,10.5447,140.36,140.28,21.7744]
[1718388724986,7.9083,140.36,140.32,2.6367]
[1718388725300,7.9088,140.35,140.31,7.9106]
[1718388725470,7.9088,140.35,140.31,7.9107]
[1718388725674,7.9088,140.35,140.31,2.6369]
[1718388725880,2.6364,140.34,140.3,26.3707]
[1718388726073,26.363,140.35,140.31,2.6369]
[1718388726294,23.7266,140.35,140.31,2.6369]
[1718388726471,2.6365,140.34,140.31,2.637]
[1718388726666,15.8188,140.34,140.3,2.637]
[1718388727096,7.9094,140.34,140.3,7.9113]
[1718388727472,23.7269,140.35,140.3,23.7346]
[1718388727672,2.6364,140.34,140.3,23.7343]
[1718388727885,7.909,140.35,140.31,2.6369]
[1718388728094,7.9101,140.33,140.29,8.082]
[1718388728289,7.9101,140.33,140.29,7.912]
[1718388729073,2.6365,140.34,140.3,15.8229]
[1718388729429,7.9094,140.34,140.3,2.6371]
[1718388729577,7.37287864,140.38,140.28,34.9619]
[1718388729778,2.6369,140.32,140.29,2.6373]
[1718388730095,26.3673,140.33,140.29,2.6373]
[1718388730292,7.9116,140.3,140.25,5.276]
[1718388730485,7.37287864,140.38,140.24,22.2799]
[1718388730486,7.9094,140.34,140.28,5.2748]
[1718388730793,7.9094,140.34,140.24,22.2799]
[1718388730794,7.37287864,140.38,140.24,22.2799]
[1718388731006,2.6366,140.33,140.28,7.9126]
[1718388731173,7.9096,140.34,140.3,2.6371]
[1718388731502,2.6365,140.34,140.3,15.823]
[1718388731801,7.9094,140.34,140.3,7.9115]
[1718388731970,2.6366,140.33,140.3,2.6371]
[1718388732170,2.6366,140.33,140.29,26.3726]
[1718388732392,2.6366,140.33,140.3,2.6371]
[1718388732595,13.1832,140.33,140.29,2.6372]
[1718388732792,23.7301,140.33,140.29,2.6372]
[1718388733102,2.6368,140.32,140.28,26.3747]
[1718388733513,7.91,140.33,140.29,15.8241]
[1718388733716,18.453,140.36,140.32,7.9102]
[1718388734011,13.1824,140.34,140.3,2.637]
[1718388734220,7.9089,140.35,140.31,2.6369]
[1718388734381,2.6364,140.34,140.31,2.6369]
[1718388734819,2.6364,140.34,140.3,23.9038]
[1718388735017,2.6364,140.34,140.31,0.34]
[1718388735307,31.08849008,140.37,140.32,18.4572]
[1718388735501,20.54439008,140.37,140.32,18.457]
[1718388735697,7.9082,140.36,140.32,26.367]
[1718388736195,2.6363,140.35,140.31,26.7095]
[1718388736392,15.8177,140.35,140.31,5.6138]
[1718388736587,7.36479008,140.37,140.27,18.4641]
[1718388736923,7.9107,140.32,140.28,7.9126]
[1718388737110,15.822,140.31,140.27,7.9129]
[1718388737409,2.6371,140.31,140.28,2.6375]
[1718388737587,7.9108,140.32,140.28,15.8251]
[1718388737782,26.3686,140.32,140.28,7.9124]
[1718388737995,7.9108,140.32,140.24,43.5699]
[1718388738196,26.367,140.33,140.29,7.912]
[1718388738407,7.9104,140.32,140.29,1.42530549]
[1718388738614,7.9104,140.32,140.28,26.3746]
[1718388738615,1.63574992,140.36,140.26,2.6378]
[1718388738786,2.6374,140.29,140.26,2.6378]
[1718388738991,2.6368,140.32,140.24,43.5699]
[1718388739302,7.9112,140.31,140.27,5.2753]
[1718388739501,7.9112,140.31,140.22,134.34605732]
[1718388739502,2.6374,140.29,140.25,13.19]
[1718388739703,7.9122,140.29,140.25,23.7422]
[1718388739920,2.6374,140.29,140.25,23.7422]
[1718388740109,2.6374,140.29,140.26,2.6379]
[1718388740307,2.6372,140.3,140.27,2.6377]
[1718388740604,2.6372,140.3,140.28,1.41802649]
[1718388740812,2.6372,140.3,140.27,2.6377]
[1718388741216,26.3723,140.3,140.26,7.9136]
[1718388741507,23.735,140.3,140.26,15.8274]
[1718388741821,2.6373,140.3,140.27,2.6377]
[1718388742221,21.0968,140.31,140.27,15.8262]
[1718388742520,7.9112,140.31,140.27,26.3767]
[1718388742728,18.4585,140.32,140.28,15.825]
[1718388742915,2.6369,140.32,140.29,2.6373]
[1718388743241,7.9103,140.33,140.3,2.6371]
[1718388743417,15.8202,140.33,140.29,7.9118]
[1718388743728,1.63574992,140.36,140.34,2.6364]
[1718388743900,15.8166,140.36,140.32,18.4569]
[1718388744106,44.5794,140.42,140.31,0.17]
[1718388744303,5.2719,140.37,140.32,5.2733]
[1718388744602,2.636,140.37,140.34,0.17]
[1718388744809,23.7231,140.37,140.34,0.17]
[1718388745012,2.636,140.36,140.34,0.17]
[1718388745315,7.9073,140.38,140.35,2.6362]
[1718388745494,18.4475,140.4,140.36,2.636]
[1718388745701,1.63574992,140.41,140.38,2.6355]
[1718388745900,15.81,140.42,140.38,7.9069]
[1718388746100,2.6351,140.41,140.38,7.9068]
[1718388746326,2.6351,140.41,140.38,15.8138]
[1718388746500,7.9054,140.41,140.38,2.6355]
[1718388746705,7.35441353,140.44,140.37,0.17]
[1718388746900,7.35441353,140.44,140.36,16.896]
[1718388746901,26.3576,140.38,140.36,16.896]
[1718388747113,23.7157,140.42,140.38,7.9069]
[1718388747319,8.99016345,140.44,140.37,0.17]
[1718388747517,2.6355,140.39,140.36,37.9835]
[1718388747719,2.6355,140.39,140.31,21.29]
[1718388747720,8.99016345,140.44,140.32,34.3532]
[1718388747931,2.6363,140.35,140.32,18.5326]
[1718388748103,2.6366,140.33,140.32,15.8958]
[1718388748305,2.6369,140.32,140.29,7.9118]
[1718388748612,100.0,140.41,140.29,7.9118]
[1718388748613,23.7306,140.33,140.29,23.7358]
[1718388748821,2.6367,140.33,140.3,2.6371]
[1718388749116,2.6367,140.33,140.29,18.4612]
[1718388749117,2.6369,140.32,140.29,2.6373]
[1718388749317,100.0,140.41,140.3,7.9112]
[1718388749505,35.84,140.42,140.3,7.9112]
[1718388749506,2.6366,140.33,140.3,2.637]
[1718388749706,23.7282,140.34,140.3,23.7342]
[1718388749908,2.6363,140.35,140.32,2.6367]
[1718388750218,26.3614,140.36,140.33,2.6366]
[1718388750417,2.636,140.36,140.33,26.3657]
[1718388750720,5.2727,140.35,140.32,0.17]
[1718388751029,2.6366,140.33,140.3,26.3705]
[1718388751332,18.4567,140.33,140.3,2.6372]
[1718388751523,23.7303,140.33,140.29,24.0759]
[1718388751726,1.63574992,140.4,140.32,13.1839]
[1718388752036,2.6361,140.36,140.33,2.6365]
[1718388752238,15.8164,140.36,140.32,23.7305]
[1718388752435,7.9082,140.36,140.33,2.6365]
[1718388752610,7.9082,140.36,140.33,7.9096]
[1718388752611,2.6361,140.36,140.33,7.9096]
[1718388752817,7.9082,140.36,140.33,2.6365]
[1718388753011,1.63574992,140.4,140.34,5.4425]
[1718388753227,5.2721,140.36,140.33,0.17]
[1718388753435,2.6362,140.36,140.33,7.9098]
[1718388753745,7.9083,140.36,140.33,2.6366]
[1718388753910,2.6357,140.38,140.35,7.9085]
[1718388754110,7.9071,140.38,140.35,2.6361]
[1718388754307,2.6357,140.38,140.35,26.362]
[1718388754527,23.7184,140.4,140.36,23.7244]
[1718388754741,7.9062,140.4,140.37,7.9075]
[1718388754919,7.9057,140.41,140.38,2.6356]
[1718388755229,2.6354,140.4,140.37,7.9074]
[1718388755537,15.8112,140.41,140.37,10.5435]
[1718388755736,10.5401,140.42,140.38,9.088]
[1718388755946,23.7085,140.46,140.42,5.2697]
[1718388756152,6.3917,140.51,140.42,5.2697]
[1718388756153,5.2682,140.47,140.43,7.904]
[1718388756442,2.6341,140.47,140.44,23.8806]
[1718388756631,2.6335,140.5,140.47,7.9019]
[1718388756818,2.6335,140.5,140.46,18.4386]
[1718388756819,13.1673,140.5,140.46,23.7068]
[1718388757016,2.6337,140.49,140.46,7.9023]
[1718388757215,2.6335,140.5,140.47,7.9018]
[1718388757550,2.6335,140.5,140.46,10.5363]
[1718388757551,13.1656,140.52,140.46,0.17]
[1718388757712,7.5588,140.57,140.47,0.17]
[1718388757918,7.5588,140.57,140.48,8.0711]
[1718388757919,7.8998,140.51,140.48,8.0711]
[1718388758424,2.6332,140.52,140.49,7.9006]
[1718388758607,2.6332,140.52,140.49,23.7022]
[1718388758807,2.633,140.53,140.5,15.8004]
[1718388759037,6.3917,140.59,140.49,0.17]
[1718388759038,7.37444089,140.57,140.49,0.17]
[1718388759218,5.2667,140.51,140.48,2.9737]
[1718388759418,21.0664,140.51,140.48,2.9737]
[1718388759611,2.6331,140.52,140.49,23.7022]
[1718388759807,2.633,140.53,140.5,15.8004]
[1718388760044,2.6327,140.54,140.51,5.4363]
[1718388760244,2.6327,140.54,140.52,2.633]
[1718388760421,2.6327,140.54,140.51,26.6715]
[1718388760620,7.8978,140.55,140.52,7.899]
[1718388760946,5.265,140.55,140.52,2.633]
[1718388761230,13.1644,140.53,140.51,0.34]
[1718388761534,7.38112424,140.59,140.48,13.1689]
[1718388761736,2.6333,140.51,140.48,21.07]
[1718388761941,1.63574992,140.58,140.49,0.34]
[1718388762128,7.8987,140.53,140.5,7.9001]
[1718388762313,2.6328,140.54,140.51,23.6991]
[1718388762641,18.4253,140.57,140.53,5.2656]
[1718388762812,18.4253,140.57,140.49,0.51]
[1718388762813,6.89974992,140.58,140.55,2.6324]
[1718388763014,4.26764992,140.58,140.55,18.4274]
[1718388763258,15.7917,140.58,140.55,7.8971]
[1718388763409,2.6321,140.57,140.52,0.17]
[1718388763609,7.8965,140.57,140.54,7.8978]
[1718388763829,10.5258,140.61,140.55,6.2992]
[1718388764032,21.4951,140.7,140.6,2.6315]
[1718388764033,15.7862,140.63,140.6,2.6315]
[1718388764242,21.4951,140.7,140.62,2.6311]
[1718388764243,2.6307,140.65,140.62,2.6311]
[1718388764465,21.4951,140.7,140.62,2.6311]
[1718388764466,7.37413174,140.67,140.62,7.8935]
[1718388764617,2.6309,140.64,140.61,7.8938]
[1718388764811,2.6307,140.65,140.62,5.2623]
[1718388765012,23.6758,140.65,140.62,2.6311]
[1718388765217,7.37764873,140.7,140.62,0.17]
[1718388765518,257.5,140.73,140.63,0.17]
[1718388765722,264.85808296,140.73,140.63,0.51]
[1718388766045,23.6729,140.67,140.64,7.8923]
[1718388766265,21.0427,140.67,140.64,5.2616]
[1718388766545,3.4537025,140.68,140.66,2.6304]
[1718388766848,3.4537025,140.68,140.65,23.6754]
[1718388766849,16.6040025,140.68,140.65,7.8915]
[1718388767019,16.6040025,140.68,140.65,2.6304]
[1718388767219,0.8236025,140.68,140.67,15.9515]
[1718388767445,0.8236025,140.68,140.67,24.3523]
[1718388767624,0.8236025,140.68,140.67,26.9825]
[1718388768338,2.6293,140.73,140.67,0.68]
[1718388768657,23.6596,140.75,140.72,2.6293]
[1718388768965,2.629,140.74,140.71,23.6648]
[1718388769244,2.6291,140.73,140.71,7.8882]
[1718388769438,26.2912,140.73,140.72,0.17]
[1718388769747,10.5169,140.73,140.7,5.2593]
[1718388770047,5.2599,140.69,140.66,2.6303]
[1718388770350,106.3917,140.75,140.64,6.5218]
[1718388770526,2.631,140.63,140.6,11.3118]
[1718388770727,35.84,140.74,140.63,2.6309]
[1718388770930,2.6305,140.66,140.64,2.6308]
[1718388771449,15.784,140.65,140.62,2.6311]
[1718388771757,35.84,140.74,140.65,2.6305]
[1718388771975,5.2603,140.68,140.65,2.6305]
[1718388772131,7.8904,140.68,140.65,15.7835]
[1718388772321,5.2599,140.69,140.66,7.8912]
[1718388772520,7.8882,140.72,140.6,6.049]
[1718388772720,7.8876,140.73,140.7,2.6296]
[1718388772921,2.6295,140.71,140.69,2.6297]
[1718388773125,264.87354046,140.78,140.69,5.2595]
[1718388773428,23.6643,140.72,140.7,0.17]
[1718388773628,7.8882,140.72,140.7,0.17]
[1718388773953,26.2924,140.73,140.7,8.0589]
[1718388774132,15.7751,140.73,140.7,8.0588]
[1718388774632,2.6294,140.72,140.7,2.7995]
[1718388775046,5.2574,140.76,140.71,1.93123023]
[1718388775246,1.63574992,140.77,140.7,6.2408]
[1718388775247,2.6291,140.73,140.7,11.4999]
[1718388775547,237.47574992,140.77,140.64,16.3403]
[1718388775856,2.6304,140.66,140.64,2.6307]
[1718388776042,206.0871,140.75,140.61,6.4]
[1718388776243,100.0,140.73,140.61,6.4]
[1718388776555,23.6733,140.67,140.64,7.8923]
[1718388776725,26.3036,140.67,140.64,7.8923]
[1718388776931,7.891,140.67,140.64,15.7846]
[1718388777147,2.6301,140.68,140.65,23.6754]
[1718388777367,2.6301,140.68,140.66,2.6304]
[1718388777667,5.26,140.69,140.65,7.8918]
[1718388777832,2.6299,140.69,140.67,7.8904]
[1718388778035,2.6301,140.68,140.66,0.34]
[1718388778244,7.8903,140.68,140.66,0.34]
[1718388778444,6.0871,140.75,140.61,6.4]
[1718388778445,26.3025,140.67,140.63,7.8927]
[1718388778651,15.7842,140.65,140.62,7.8935]
[1718388778834,2.6308,140.64,140.62,2.6311]
[1718388779033,7.8925,140.64,140.61,14.2938]
[1718388779239,2.6309,140.64,140.61,7.8939]
[1718388779542,2.6309,140.64,140.62,2.6311]
[1718388779843,26.3068,140.65,140.62,7.8934]
[1718388780246,7.8915,140.66,140.63,7.8927]
[1718388780445,5.2613,140.65,140.62,26.6507]
[1718388780648,7.893,140.63,140.6,26.3147]
[1718388780849,7.8931,140.63,140.6,7.8944]
[1718388781047,23.6793,140.63,140.6,2.6314]
[1718388781260,18.4161,140.64,140.6,13.1576]
[1718388781444,2.6305,140.66,140.57,27.5525]
[1718388781649,7.8916,140.66,140.57,27.5525]
[1718388781857,15.7828,140.66,140.63,7.8926]
[1718388782167,15.7828,140.66,140.62,18.4175]
[1718388782168,7.892,140.65,140.62,7.8933]
[1718388782345,23.675,140.66,140.63,2.631]
[1718388782546,2.6306,140.65,140.63,2.6309]
[1718388782741,2.6306,140.65,140.62,24.02]
[1718388782945,5.2609,140.66,140.63,10.8638]
[1718388783142,7.35161907,140.68,140.66,23.6735]
[1718388783373,2.6299,140.69,140.67,2.6301]
[1718388783547,15.7794,140.69,140.66,7.8908]
[1718388783747,7.8897,140.69,140.66,7.8908]
[1718388783970,15.7794,140.69,140.66,7.8908]
[1718388784174,23.6691,140.69,140.66,2.6303]